[Event "*** Titled Tuesday Blitz"]
[Site "Chess.com"]
[Date "2019.04.02"]
[Round "10"]
[White "Chesstrainer1"]
[Black "olksuna"]
[Result "0-1"]
[WhiteElo "2388"]
[BlackElo "2473"]
[TimeControl "180+2"]
[EndTime "16:21:28 PDT"]
[Termination "olksuna won by resignation"]

1. d4 {[%clk 0:03:00.9]} 1... d5 {[%clk 0:03:00.4]} 2. c4 {[%clk 0:03:01.6]}
2... e6 {[%clk 0:03:00.2]} 3. Nf3 {[%clk 0:03:00.7]} 3... c6 {[%clk 0:03:01]} 4.
Qc2 {[%clk 0:02:57.1]} 4... Nf6 {[%clk 0:03:00]} 5. g3 {[%clk 0:02:49.9]} 5...
dxc4 {[%clk 0:02:56.5]} 6. Qxc4 {[%clk 0:02:51.8]} 6... b5 {[%clk 0:02:57.3]} 7.
Qb3 {[%clk 0:02:49.5]} 7... Bb7 {[%clk 0:02:59.2]} 8. Bg2 {[%clk 0:02:49]} 8...
Bc8 {[%clk 0:03:01.1]} 9. O-O {[%clk 0:02:48.1]} 9... Bb7 {[%clk 0:03:03]} 10.
Rd1 {[%clk 0:02:43.1]} 10... Be7 {[%clk 0:03:02.1]} 11. Nc3 {[%clk 0:02:42.4]}
11... O-O {[%clk 0:03:02.6]} 12. Bg5 {[%clk 0:02:36.5]} 12... a6 {[%clk
0:03:00.4]} 13. e4 {[%clk 0:02:27.7]} 13... Nbd7 {[%clk 0:03:00.3]} 14. e5
{[%clk 0:02:26.7]} 14... Nd5 {[%clk 0:03:00.7]} 15. Bxe7 {[%clk 0:02:27.5]}
15... Qxe7 {[%clk 0:03:01.5]} 16. Rac1 {[%clk 0:02:10]} 16... c5 {[%clk
0:02:59.8]} 17. dxc5 {[%clk 0:02:04.5]} 17... Nxc5 {[%clk 0:03:00.5]} 18. Qa3
{[%clk 0:02:05.6]} 18... Rac8 {[%clk 0:02:51]} 19. Nxd5 {[%clk 0:01:37.7]} 19...
Bxd5 {[%clk 0:02:51]} 20. Rc2 {[%clk 0:01:16.9]} 20... Qb7 {[%clk 0:02:36.1]}
21. Rdc1 {[%clk 0:01:13.3]} 21... b4 {[%clk 0:02:26]} 22. Qe3 {[%clk 0:01:10.8]}
22... Nd7 {[%clk 0:02:23.7]} 23. Nh4 {[%clk 0:00:29]} 23... Bxg2 {[%clk
0:02:20.9]} 24. Nxg2 {[%clk 0:00:28.3]} 24... Rxc2 {[%clk 0:02:20.4]} 25. Rxc2
{[%clk 0:00:30.2]} 25... Rc8 {[%clk 0:02:17.8]} 26. Ne1 {[%clk 0:00:21.8]} 26...
a5 {[%clk 0:02:06.8]} 27. h4 {[%clk 0:00:20.7]} 27... h6 {[%clk 0:01:57.3]} 28.
Qd4 {[%clk 0:00:20]} 28... Rxc2 {[%clk 0:01:52.8]} 29. Nxc2 {[%clk 0:00:20.4]}
29... Qc7 {[%clk 0:01:54.7]} 30. f4 {[%clk 0:00:16.8]} 30... Nxe5 {[%clk
0:01:51.8]} 31. fxe5 {[%clk 0:00:14.5]} 31... Qxc2 {[%clk 0:01:51.9]} 32. Qd8+
{[%clk 0:00:14.8]} 32... Kh7 {[%clk 0:01:52.2]} 33. Qxa5 {[%clk 0:00:15.3]}
33... Qc1+ {[%clk 0:01:50]} 34. Kg2 {[%clk 0:00:15.5]} 34... Qxb2+ {[%clk
0:01:51.9]} 35. Kh3 {[%clk 0:00:17.4]} 35... h5 {[%clk 0:01:48.6]} 36. Qc7
{[%clk 0:00:13.4]} 36... Qb1 {[%clk 0:01:38.9]} 37. Qb7 {[%clk 0:00:11.8]} 37...
Kg6 {[%clk 0:01:27.6]} 38. Qg2 {[%clk 0:00:11.4]} 38... Qf5+ {[%clk 0:01:26.1]}
39. Kh2 {[%clk 0:00:11.5]} 39... Qxe5 {[%clk 0:01:28]} 40. Qc2+ {[%clk
0:00:12.3]} 40... f5 {[%clk 0:01:23.4]} 41. Qa4 {[%clk 0:00:10.5]} 41... Qe2+
{[%clk 0:01:16.9]} 42. Kg1 {[%clk 0:00:09.5]} 42... Qg4 {[%clk 0:00:52.1]} 43.
Kh2 {[%clk 0:00:05.8]} 43... f4 {[%clk 0:00:52.9]} 44. gxf4 {[%clk 0:00:05.3]}
44... Qxh4+ {[%clk 0:00:51.9]} 45. Kg2 {[%clk 0:00:06.5]} 45... Qg4+ {[%clk
0:00:53]} 46. Kh1 {[%clk 0:00:06.3]} 46... Qxf4 {[%clk 0:00:52.2]} 47. Qe8+
{[%clk 0:00:06.6]} 47... Kg5 {[%clk 0:00:51.1]} 48. Qe7+ {[%clk 0:00:06.9]}
48... Qf6 {[%clk 0:00:38.9]} 49. Qxb4 {[%clk 0:00:06.9]} 49... Qa1+ {[%clk
0:00:38.7]} 50. Kg2 {[%clk 0:00:06.1]} 50... Qxa2+ {[%clk 0:00:39.8]} 51. Kh1
{[%clk 0:00:05.1]} 51... Qd5+ {[%clk 0:00:40]} 52. Kh2 {[%clk 0:00:04.4]} 52...
Qe5+ {[%clk 0:00:35.7]} 53. Kh1 {[%clk 0:00:03.5]} 53... h4 {[%clk 0:00:32.9]}
54. Qd2+ {[%clk 0:00:02.9]} 54... Qf4 {[%clk 0:00:24.6]} 55. Qd8+ {[%clk
0:00:04.1]} 55... Kg4 {[%clk 0:00:25]} 56. Qd7 {[%clk 0:00:04.6]} 56... Qe4+
{[%clk 0:00:24.8]} 57. Kg1 {[%clk 0:00:05]} 57... g5 {[%clk 0:00:23]} 58. Qd1+
{[%clk 0:00:05]} 58... Qf3 {[%clk 0:00:23.8]} 59. Qd4+ {[%clk 0:00:05.5]} 59...
Kg3 {[%clk 0:00:22.9]} 60. Qe5+ {[%clk 0:00:05.6]} 60... Qf4 {[%clk 0:00:24.1]}
61. Qe1+ {[%clk 0:00:06]} 61... Kg4 {[%clk 0:00:23.4]} 62. Qe2+ {[%clk
0:00:06.5]} 62... Qf3 {[%clk 0:00:24.6]} 63. Qxe6+ {[%clk 0:00:07.3]} 63... Kf4
{[%clk 0:00:23.8]} 64. Qf6+ {[%clk 0:00:07.8]} 64... Kg4 {[%clk 0:00:24.9]} 65.
Qe6+ {[%clk 0:00:08.9]} 65... Qf5 {[%clk 0:00:25.5]} 66. Qe2+ {[%clk 0:00:09.7]}
66... Qf3 {[%clk 0:00:26.2]} 67. Qe6+ {[%clk 0:00:10.4]} 67... Kh5 {[%clk
0:00:26.1]} 68. Qe8+ {[%clk 0:00:11.2]} 68... Kg4 {[%clk 0:00:26.4]} 69. Qe6+
{[%clk 0:00:12]} 69... Kh5 {[%clk 0:00:27.5]} 70. Qe8+ {[%clk 0:00:12.7]} 70...
Kh6 {[%clk 0:00:28.7]} 71. Qe6+ {[%clk 0:00:13.5]} 71... Kg7 {[%clk 0:00:30]}
72. Qe7+ {[%clk 0:00:14.5]} 72... Kg6 {[%clk 0:00:31.5]} 73. Qe6+ {[%clk
0:00:15.3]} 73... Qf6 {[%clk 0:00:33]} 74. Qe8+ {[%clk 0:00:15.6]} 74... Kf5
{[%clk 0:00:34.2]} 75. Qb5+ {[%clk 0:00:15.4]} 75... Ke4 {[%clk 0:00:33.4]} 76.
Qb7+ {[%clk 0:00:14.6]} 76... Kf4 {[%clk 0:00:33.1]} 77. Qb4+ {[%clk 0:00:14.2]}
77... Ke3 {[%clk 0:00:28.1]} 78. Qb3+ {[%clk 0:00:14]} 78... Ke4 {[%clk
0:00:29.2]} 79. Qb7+ {[%clk 0:00:13.8]} 79... Kf4 {[%clk 0:00:27.5]} 80. Qb4+
{[%clk 0:00:13.7]} 80... Kg3 {[%clk 0:00:28]} 81. Qb3+ {[%clk 0:00:13.7]} 81...
Qf3 {[%clk 0:00:28.5]} 82. Qb8+ {[%clk 0:00:13.2]} 82... Kh3 {[%clk 0:00:28.3]}
83. Qh2+ {[%clk 0:00:12.9]} 83... Kg4 {[%clk 0:00:29.1]} 84. Qd6 {[%clk
0:00:11.1]} 84... Qg3+ {[%clk 0:00:26.2]} 0-1

[Event "*** Titled Tuesday Blitz"]
[Site "Chess.com"]
[Date "2019.04.02"]
[Round "10"]
[White "GadimbayliA"]
[Black "GataKamsky1974"]
[Result "1/2-1/2"]
[WhiteElo "2822"]
[BlackElo "2802"]
[TimeControl "180+2"]
[EndTime "16:21:30 PDT"]
[Termination "Game drawn by agreement"]

1. e4 {[%clk 0:03:01.9]} 1... e5 {[%clk 0:02:59.3]} 2. Nf3 {[%clk 0:03:02.6]}
2... Nc6 {[%clk 0:02:59.9]} 3. Bb5 {[%clk 0:03:00.5]} 3... a6 {[%clk 0:03:01.1]}
4. Ba4 {[%clk 0:03:01.5]} 4... Nf6 {[%clk 0:03:02.3]} 5. O-O {[%clk 0:03:02.7]}
5... Be7 {[%clk 0:03:03.7]} 6. Re1 {[%clk 0:03:03.5]} 6... b5 {[%clk 0:03:03.7]}
7. Bb3 {[%clk 0:03:05.1]} 7... d6 {[%clk 0:03:05.2]} 8. c3 {[%clk 0:03:06.3]}
8... O-O {[%clk 0:03:05.7]} 9. h3 {[%clk 0:03:07.7]} 9... Nb8 {[%clk 0:03:06.7]}
10. d4 {[%clk 0:03:08.8]} 10... Nbd7 {[%clk 0:03:08.3]} 11. Nbd2 {[%clk
0:03:10]} 11... Bb7 {[%clk 0:03:09.7]} 12. Bc2 {[%clk 0:03:11.4]} 12... Re8
{[%clk 0:03:11]} 13. Nf1 {[%clk 0:03:12.8]} 13... Bf8 {[%clk 0:03:12.4]} 14. Ng3
{[%clk 0:03:13.9]} 14... g6 {[%clk 0:03:13.6]} 15. Bg5 {[%clk 0:03:06.4]} 15...
Bg7 {[%clk 0:03:06.6]} 16. Qd2 {[%clk 0:03:00.4]} 16... Qe7 {[%clk 0:03:02.8]}
17. Nh4 {[%clk 0:02:25.8]} 17... Qf8 {[%clk 0:02:54.5]} 18. d5 {[%clk
0:02:00.4]} 18... h6 {[%clk 0:01:55.4]} 19. Be3 {[%clk 0:01:50.8]} 19... c6
{[%clk 0:01:56.5]} 20. dxc6 {[%clk 0:01:43.1]} 20... Bxc6 {[%clk 0:01:57.5]} 21.
Bb3 {[%clk 0:01:27]} 21... Kh7 {[%clk 0:01:38.9]} 22. Rad1 {[%clk 0:01:24.3]}
22... Nxe4 {[%clk 0:01:01.8]} 23. Nxe4 {[%clk 0:01:23.5]} 23... Bxe4 {[%clk
0:01:03.3]} 24. Qxd6 {[%clk 0:01:21.1]} 24... Re7 {[%clk 0:00:48.8]} 25. Bxh6
{[%clk 0:00:38.7]} 25... Bxh6 {[%clk 0:00:43.2]} 26. Rxe4 {[%clk 0:00:39.3]}
26... Rb8 {[%clk 0:00:32.1]} 27. Ree1 {[%clk 0:00:24.8]} 27... Rb6 {[%clk
0:00:31.7]} 28. Qc7 {[%clk 0:00:25.4]} 28... Qb8 {[%clk 0:00:20.3]} 29. Qxb8
{[%clk 0:00:24.2]} 29... Nxb8 {[%clk 0:00:21.5]} 30. Nf3 {[%clk 0:00:22]} 30...
f6 {[%clk 0:00:21.2]} 31. Rd8 {[%clk 0:00:19.7]} 31... Nd7 {[%clk 0:00:22.4]}
32. Rd1 {[%clk 0:00:18.9]} 32... Nc5 {[%clk 0:00:23.6]} 33. Bc2 {[%clk
0:00:19.1]} 33... Kg7 {[%clk 0:00:22.1]} 34. Nh4 {[%clk 0:00:15.4]} 34... e4
{[%clk 0:00:23.1]} 35. b4 {[%clk 0:00:15.2]} 35... Ne6 {[%clk 0:00:22.9]} 36.
R8d7 {[%clk 0:00:14.8]} 36... Rb7 {[%clk 0:00:20.9]} 37. Rxb7 {[%clk 0:00:15.5]}
37... Rxb7 {[%clk 0:00:22]} 38. Bxe4 {[%clk 0:00:17.1]} 38... Rc7 {[%clk
0:00:23.5]} 39. Nxg6 {[%clk 0:00:10.9]} 39... Nf4 {[%clk 0:00:23]} 40. Nxf4
{[%clk 0:00:08.3]} 40... Bxf4 {[%clk 0:00:24.1]} 41. g3 {[%clk 0:00:08]} 41...
Be5 {[%clk 0:00:25.4]} 42. Rd8 {[%clk 0:00:05.7]} 42... Bxc3 {[%clk 0:00:25]}
43. Ra8 {[%clk 0:00:07]} 43... Bxb4 {[%clk 0:00:24.7]} 44. Rxa6 {[%clk
0:00:08.2]} 44... Bc5 {[%clk 0:00:24.8]} 45. Kg2 {[%clk 0:00:09]} 45... Re7
{[%clk 0:00:23.8]} 46. Bf3 {[%clk 0:00:09.6]} 46... Rd7 {[%clk 0:00:21.9]} 47.
Rc6 {[%clk 0:00:10.7]} 47... Ba7 {[%clk 0:00:22.2]} 48. Rc2 {[%clk 0:00:10.4]}
48... Bd4 {[%clk 0:00:21]} 49. Rd2 {[%clk 0:00:10.5]} 49... Rd6 {[%clk
0:00:22.4]} 50. h4 {[%clk 0:00:10.7]} 50... b4 {[%clk 0:00:23.4]} 51. Be4 {[%clk
0:00:10.9]} 51... Bc5 {[%clk 0:00:24]} 52. Rxd6 {[%clk 0:00:11.7]} 52... Bxd6
{[%clk 0:00:24.9]} 53. Kf3 {[%clk 0:00:13.2]} 53... Bc5 {[%clk 0:00:26]} 54. Ke2
{[%clk 0:00:11.8]} 54... Bd4 {[%clk 0:00:27.3]} 55. f4 {[%clk 0:00:12.2]} 55...
Bc3 {[%clk 0:00:28.6]} 56. Kf3 {[%clk 0:00:13.4]} 56... Be1 {[%clk 0:00:29.6]}
57. Kg4 {[%clk 0:00:13.3]} 57... Bf2 {[%clk 0:00:30.5]} 58. Kh3 {[%clk
0:00:14.4]} 58... Be1 {[%clk 0:00:31.5]} 59. Bf5 {[%clk 0:00:11.7]} 59... Kf7
{[%clk 0:00:30.4]} 60. Bc2 {[%clk 0:00:11.4]} 60... Kg7 {[%clk 0:00:30.5]} 61.
h5 {[%clk 0:00:12.6]} 61... Kh6 {[%clk 0:00:30.6]} 62. Kg4 {[%clk 0:00:14.1]}
62... Bf2 {[%clk 0:00:29.4]} 63. Bg6 {[%clk 0:00:15.1]} 63... Be1 {[%clk
0:00:30.6]} 64. Kf3 {[%clk 0:00:16.5]} 64... Kg7 {[%clk 0:00:29.6]} 65. g4
{[%clk 0:00:17.7]} 65... Bd2 {[%clk 0:00:30.2]} 66. Ke4 {[%clk 0:00:19.1]} 66...
Kh6 {[%clk 0:00:28]} 67. Kf5 {[%clk 0:00:20.4]} 67... Bc1 {[%clk 0:00:29.4]} 68.
Bf7 {[%clk 0:00:21.7]} 68... Bd2 {[%clk 0:00:30.7]} 69. Bb3 {[%clk 0:00:22.2]}
69... Bc1 {[%clk 0:00:31.9]} 70. Ke4 {[%clk 0:00:14.8]} 70... Bd2 {[%clk
0:00:32.9]} 71. Kf5 {[%clk 0:00:16]} 71... Bc1 {[%clk 0:00:34]} 72. Kxf6 {[%clk
0:00:17.5]} 72... Bxf4 {[%clk 0:00:34.8]} 73. Be6 {[%clk 0:00:18.8]} 73... Bg5+
{[%clk 0:00:36]} 74. Ke5 {[%clk 0:00:20.2]} 74... Bd2 {[%clk 0:00:36.9]} 75. Kd5
{[%clk 0:00:21.3]} 75... Kg5 {[%clk 0:00:36.7]} 76. Kc4 {[%clk 0:00:22.3]} 76...
Kh6 {[%clk 0:00:36.2]} 77. Kd3 {[%clk 0:00:23.7]} 77... Bf4 {[%clk 0:00:36.6]}
78. Kc2 {[%clk 0:00:23.9]} 78... Bd6 {[%clk 0:00:36.6]} 79. Kb3 {[%clk 0:00:24]}
79... Be7 {[%clk 0:00:36.8]} 80. Kc4 {[%clk 0:00:25.3]} 80... Kg5 {[%clk
0:00:38]} 81. Kd5 {[%clk 0:00:26.5]} 81... Bf6 {[%clk 0:00:37.4]} 82. Bf5 {[%clk
0:00:27.6]} 82... Bc3 {[%clk 0:00:37.7]} 83. Ke6 {[%clk 0:00:29]} 83... Bd2
{[%clk 0:00:38.7]} 84. Kf7 {[%clk 0:00:29]} 84... Bc3 {[%clk 0:00:39.6]} 85. Bd7
{[%clk 0:00:28.1]} 85... Bd4 {[%clk 0:00:40.1]} 86. Kg8 {[%clk 0:00:28.7]} 86...
Kh6 {[%clk 0:00:40.9]} 87. Be8 {[%clk 0:00:24.7]} 87... Be3 {[%clk 0:00:41.2]}
88. Bg6 {[%clk 0:00:23.8]} 88... Bd2 {[%clk 0:00:41.7]} 89. Kf7 {[%clk 0:00:25]}
89... Be3 {[%clk 0:00:42.4]} 1/2-1/2

[Event "*** Titled Tuesday Blitz"]
[Site "Chess.com"]
[Date "2019.04.02"]
[Round "10"]
[White "SARGISMV"]
[Black "Benek77"]
[Result "1/2-1/2"]
[WhiteElo "2463"]
[BlackElo "2645"]
[TimeControl "180+2"]
[EndTime "16:21:57 PDT"]
[Termination "Game drawn - insufficient material"]

1. Nf3 {[%clk 0:03:01.9]} 1... Nf6 {[%clk 0:02:59.3]} 2. c4 {[%clk 0:03:03.8]}
2... g6 {[%clk 0:02:59.5]} 3. Nc3 {[%clk 0:02:59.8]} 3... Bg7 {[%clk 0:03:00.8]}
4. e4 {[%clk 0:03:00.1]} 4... O-O {[%clk 0:03:02.3]} 5. d4 {[%clk 0:03:01.2]}
5... d6 {[%clk 0:03:02.9]} 6. Be2 {[%clk 0:03:02.6]} 6... e5 {[%clk 0:03:03]} 7.
O-O {[%clk 0:03:03.4]} 7... Nc6 {[%clk 0:03:03.4]} 8. d5 {[%clk 0:03:04.7]} 8...
Ne7 {[%clk 0:03:02.1]} 9. Ne1 {[%clk 0:03:05.1]} 9... Nd7 {[%clk 0:02:58.5]} 10.
Nd3 {[%clk 0:03:07]} 10... f5 {[%clk 0:02:58.1]} 11. Bd2 {[%clk 0:03:05.9]}
11... Nf6 {[%clk 0:02:57.7]} 12. f3 {[%clk 0:03:05.1]} 12... Kh8 {[%clk
0:02:59.1]} 13. c5 {[%clk 0:03:05.3]} 13... dxc5 {[%clk 0:02:56.1]} 14. Nxc5
{[%clk 0:03:05.2]} 14... c6 {[%clk 0:02:57.5]} 15. dxc6 {[%clk 0:03:00.1]} 15...
Qd4+ {[%clk 0:02:57.2]} 16. Kh1 {[%clk 0:02:51.8]} 16... Qxc5 {[%clk 0:02:57.9]}
17. cxb7 {[%clk 0:02:49.4]} 17... Bxb7 {[%clk 0:02:59.8]} 18. Rc1 {[%clk
0:02:50]} 18... fxe4 {[%clk 0:02:31.8]} 19. Nxe4 {[%clk 0:02:48.7]} 19... Qb6
{[%clk 0:02:32.7]} 20. Nc5 {[%clk 0:02:46.9]} 20... Rac8 {[%clk 0:02:26.4]} 21.
b4 {[%clk 0:02:47.2]} 21... Ned5 {[%clk 0:02:25]} 22. Qb3 {[%clk 0:02:46.6]}
22... a5 {[%clk 0:02:21.2]} 23. bxa5 {[%clk 0:02:41.1]} 23... Qxb3 {[%clk
0:02:18.1]} 24. axb3 {[%clk 0:02:43]} 24... Ba8 {[%clk 0:02:16.6]} 25. b4 {[%clk
0:02:42.7]} 25... Rfd8 {[%clk 0:01:58.5]} 26. Ne6 {[%clk 0:02:32.3]} 26... Rxc1
{[%clk 0:01:50.9]} 27. Rxc1 {[%clk 0:02:34.2]} 27... Rb8 {[%clk 0:01:52.3]} 28.
b5 {[%clk 0:02:30.7]} 28... e4 {[%clk 0:01:50.2]} 29. Be1 {[%clk 0:01:51.8]}
29... Bh6 {[%clk 0:01:36.4]} 30. Rb1 {[%clk 0:01:39.6]} 30... exf3 {[%clk
0:00:59.8]} 31. Bxf3 {[%clk 0:01:30.3]} 31... Re8 {[%clk 0:01:00.9]} 32. Nc5
{[%clk 0:01:13]} 32... Be3 {[%clk 0:00:57.7]} 33. Nd3 {[%clk 0:01:09.4]} 33...
Kg7 {[%clk 0:00:51.3]} 34. b6 {[%clk 0:01:10.5]} 34... Bb7 {[%clk 0:00:47.4]}
35. Nb4 {[%clk 0:01:10.1]} 35... Nxb4 {[%clk 0:00:45.7]} 36. Bxb7 {[%clk
0:01:06.5]} 36... Nd3 {[%clk 0:00:47]} 37. Bc6 {[%clk 0:00:57]} 37... Re6 {[%clk
0:00:45.2]} 38. b7 {[%clk 0:00:54.5]} 38... Ba7 {[%clk 0:00:42.8]} 39. Bg3
{[%clk 0:00:36.4]} 39... Rxc6 {[%clk 0:00:43.3]} 40. b8=Q {[%clk 0:00:36.6]}
40... Bxb8 {[%clk 0:00:43.1]} 41. Bxb8 {[%clk 0:00:38.5]} 41... Nd7 {[%clk
0:00:34]} 42. Bg3 {[%clk 0:00:33.5]} 42... Rc1+ {[%clk 0:00:32.8]} 43. Rxc1
{[%clk 0:00:33.4]} 43... Nxc1 {[%clk 0:00:34.7]} 44. a6 {[%clk 0:00:31.2]} 44...
Nb6 {[%clk 0:00:35.9]} 45. Bf2 {[%clk 0:00:25.6]} 45... Na8 {[%clk 0:00:35.9]}
46. g4 {[%clk 0:00:24.1]} 46... Kf7 {[%clk 0:00:36]} 47. Kg2 {[%clk 0:00:24.3]}
47... Nd3 {[%clk 0:00:37]} 48. Bd4 {[%clk 0:00:23.1]} 48... Nb4 {[%clk
0:00:36.5]} 49. a7 {[%clk 0:00:23.7]} 49... Nc6 {[%clk 0:00:38]} 50. Bf2 {[%clk
0:00:23.7]} 50... Ke6 {[%clk 0:00:39.2]} 51. Kf3 {[%clk 0:00:24.9]} 51... Ke5
{[%clk 0:00:35.5]} 52. h4 {[%clk 0:00:21.6]} 52... Ne7 {[%clk 0:00:20.6]} 53.
Bg3+ {[%clk 0:00:21.1]} 53... Ke6 {[%clk 0:00:16]} 54. Kf4 {[%clk 0:00:21.4]}
54... h6 {[%clk 0:00:16.3]} 55. Be1 {[%clk 0:00:19.5]} 55... Nd5+ {[%clk
0:00:13.8]} 56. Ke4 {[%clk 0:00:20.2]} 56... Nf6+ {[%clk 0:00:13.5]} 57. Kf4
{[%clk 0:00:20.1]} 57... Nd5+ {[%clk 0:00:14.1]} 58. Ke4 {[%clk 0:00:21.2]}
58... Ndc7 {[%clk 0:00:14.9]} 59. Bd2 {[%clk 0:00:21.5]} 59... h5 {[%clk
0:00:13]} 60. gxh5 {[%clk 0:00:22.2]} 60... gxh5 {[%clk 0:00:14.9]} 61. Kf4
{[%clk 0:00:23.4]} 61... Kf6 {[%clk 0:00:14.9]} 62. Bc3+ {[%clk 0:00:24.7]}
62... Kg6 {[%clk 0:00:15.2]} 63. Be1 {[%clk 0:00:22.5]} 63... Nd5+ {[%clk
0:00:14.1]} 64. Ke5 {[%clk 0:00:23]} 64... Ne7 {[%clk 0:00:10.7]} 65. Kd6 {[%clk
0:00:20.5]} 65... Nc8+ {[%clk 0:00:12]} 66. Kc6 {[%clk 0:00:18.4]} 66... Nxa7+
{[%clk 0:00:13.4]} 67. Kb7 {[%clk 0:00:19.7]} 67... Nb5 {[%clk 0:00:14.5]} 68.
Kxa8 {[%clk 0:00:20.1]} 68... Kf5 {[%clk 0:00:16.1]} 69. Kb7 {[%clk 0:00:21.4]}
69... Kg4 {[%clk 0:00:17.7]} 70. Kc6 {[%clk 0:00:22.8]} 70... Nd4+ {[%clk
0:00:19.4]} 71. Kd5 {[%clk 0:00:23.2]} 71... Nf3 {[%clk 0:00:17.4]} 72. Bf2
{[%clk 0:00:23]} 72... Nxh4 {[%clk 0:00:10.1]} 73. Ke4 {[%clk 0:00:24.3]} 73...
Nf5 {[%clk 0:00:10.2]} 74. Be1 {[%clk 0:00:16.3]} 74... Ng3+ {[%clk 0:00:09.8]}
75. Ke3 {[%clk 0:00:17.6]} 75... Kh3 {[%clk 0:00:06.8]} 76. Kf2 {[%clk
0:00:18.7]} 76... Kh2 {[%clk 0:00:05.3]} 77. Kf3 {[%clk 0:00:19.6]} 77... h4
{[%clk 0:00:06.1]} 78. Kg4 {[%clk 0:00:20.7]} 78... Ne4 {[%clk 0:00:02.6]} 79.
Bxh4 {[%clk 0:00:21]} 79... Kg2 {[%clk 0:00:04.5]} 80. Be7 {[%clk 0:00:21.4]}
80... Nd2 {[%clk 0:00:05.8]} 81. Kf5 {[%clk 0:00:22.8]} 81... Nf3 {[%clk
0:00:07.7]} 82. Bf6 {[%clk 0:00:24.3]} 82... Nd4+ {[%clk 0:00:08.9]} 83. Ke4
{[%clk 0:00:24.9]} 83... Nf5 {[%clk 0:00:08.6]} 84. Kxf5 {[%clk 0:00:25.5]}
1/2-1/2